fUST/lending_fUST_20250720
["ID","MTS","AMOUNT","RATE_DAILY","PERIOD"]
[373510568,1753026646126,-460.0,0.00016712,2]
[373510570,1753026646135,-460.0,0.00016712,2]
[373510572,1753026646145,-460.0,0.00016712,2]
[373510574,1753026646154,-699.71,0.00016712,2]
[373510576,1753026646164,-460.0,0.00016712,2]
[373510578,1753026646173,-460.0,0.00016712,2]
[373510580,1753026646183,-460.0,0.00016712,2]
[373510582,1753026646192,-483.79,0.00016712,2]
[373510584,1753026646203,-460.0,0.00016712,2]
[373510585,1753026646212,-460.0,0.00016712,2]
[373510586,1753026646222,-460.0,0.00016712,2]
[373510587,1753026646231,-460.0,0.00016712,2]
[373510588,1753026646241,-460.0,0.00016712,2]
[373510589,1753026646251,-460.0,0.00016712,2]
[373510590,1753026646261,-460.0,0.00016712,2]
[373510591,1753026646270,-460.0,0.00016712,2]
[373510592,1753026646280,-460.0,0.00016712,2]
[373510593,1753026646290,-460.0,0.00016712,2]
[373510594,1753026646300,-460.0,0.00016712,2]
[373510595,1753026646310,-460.0,0.00016712,2]
[373510596,1753026646320,-460.0,0.00016712,2]
[373510597,1753026646335,-460.0,0.00016712,2]
[373510598,1753026646345,-258.82693295,0.00016712,2]
[373510599,1753026646354,-460.0,0.00016712,2]
[373510600,1753026646364,-460.0,0.00016712,2]
[373510601,1753026646374,-460.0,0.00016712,2]
[373510602,1753026646384,-460.0,0.00016712,2]
[373510603,1753026646393,-460.0,0.00016712,2]
[373510604,1753026646404,-460.0,0.00016712,2]
[373510605,1753026646413,-3735.57,0.00016712,2]
[373510606,1753026646423,-518.16736314,0.00016712,2]
[373510607,1753026646432,-460.0,0.00016712,2]
[373510608,1753026646442,-460.0,0.00016712,2]
[373510609,1753026646452,-460.0,0.00016712,2]
[373510610,1753026646462,-474.03,0.00016712,2]
[373510611,1753026646471,-460.0,0.00016712,2]
[373510612,1753026646480,-460.0,0.00016712,2]
[373510613,1753026646490,-460.0,0.00016712,2]
[373510614,1753026646500,-460.0,0.00016712,2]
[373510615,1753026646509,-460.0,0.00016712,2]
[373510617,1753026646518,-460.0,0.00016712,2]
[373510619,1753026646527,-460.0,0.00016712,2]
[373510620,1753026646537,-5110.21,0.00016712,2]
[373510621,1753026646546,-460.0,0.00016712,2]
[373510623,1753026646555,-460.0,0.00016712,2]
[373510624,1753026646565,-460.0,0.00016712,2]
[373510625,1753026646574,-460.0,0.00016712,2]
[373510626,1753026646583,-460.0,0.00016712,2]
[373510627,1753026646594,-460.0,0.00016712,2]
[373510628,1753026646603,-460.0,0.00016712,2]
[373510630,1753026646612,-475.84164453,0.00016712,2]
[373510632,1753026646622,-2089.38,0.00016712,2]
[373510633,1753026646631,-460.0,0.00016712,2]
[373510634,1753026646640,-463.94,0.00016712,2]
[373510635,1753026646652,-460.0,0.00016712,2]
[373510636,1753026646663,-281.60881534,0.00016712,2]
[373510637,1753026646672,-779.34,0.00016712,2]
[373510638,1753026646682,-460.0,0.00016712,2]
[373510639,1753026646691,-460.0,0.00016712,2]
[373510640,1753026646702,-460.0,0.00016712,2]
[373510641,1753026646711,-460.0,0.00016712,2]
[373510642,1753026646721,-460.0,0.00016712,2]
[373510643,1753026646730,-460.0,0.00016712,2]
[373510644,1753026646741,-731.76,0.00016712,2]
[373510645,1753026646750,-460.0,0.00016712,2]
[373510646,1753026646760,-460.0,0.00016712,2]
[373510647,1753026646769,-460.0,0.00016712,2]
[373510648,1753026646778,-460.0,0.00016712,2]
[373510650,1753026646787,-460.0,0.00016712,2]
[373510651,1753026646797,-460.0,0.00016712,2]
[373510652,1753026646807,-460.0,0.00016712,2]
[373510653,1753026646816,-460.0,0.00016712,2]
[373510654,1753026646825,-460.0,0.00016712,2]
[373510655,1753026646835,-601.82,0.00016712,2]
[373510656,1753026646845,-3970.59,0.00016712,2]
[373510657,1753026646854,-460.0,0.00016712,2]
[373510658,1753026646864,-588.11468694,0.00016712,2]
[373510659,1753026646874,-553.67,0.00016712,2]
[373510660,1753026646884,-460.0,0.00016712,2]
[373510661,1753026646893,-460.0,0.00016712,2]
[373510662,1753026646902,-460.0,0.00016712,2]
[373510663,1753026646911,-460.97488387,0.00016712,2]
[373510664,1753026646921,-7496.91,0.00016712,2]
[373510665,1753026646931,-460.0,0.00016712,2]
[373510666,1753026646940,-460.0,0.00016712,2]
[373510667,1753026646950,-460.0,0.00016712,2]
[373510668,1753026646959,-460.0,0.00016712,2]
[373510669,1753026646968,-460.0,0.00016712,2]
[373510670,1753026646977,-592.97,0.00016712,2]
[373510671,1753026646987,-2805.44,0.00016712,2]
[373510672,1753026646996,-209.41282864,0.00016712,2]
[373510673,1753026647006,-460.0,0.00016712,2]
[373510674,1753026647015,-460.0,0.00016712,2]
[373510675,1753026647024,-552.66,0.00016712,2]
[373510676,1753026647034,-460.0,0.00016712,2]
[373510677,1753026647043,-1188.88,0.00016712,2]
[373510678,1753026647053,-460.0,0.00016712,2]
[373510679,1753026647063,-460.0,0.00016712,2]
[373510680,1753026647073,-460.0,0.00016712,2]
[373510681,1753026647084,-460.0,0.00016712,2]
[373510682,1753026647093,-2378.25,0.00016712,2]
[373510683,1753026647104,-2378.25,0.00016712,2]
[373510684,1753026647114,-460.0,0.00016712,2]
[373510685,1753026647123,-3625.06,0.00016712,2]
[373510686,1753026647133,-800.52,0.00016712,2]
[373510687,1753026647142,-328.0165722,0.00016712,2]
[373510688,1753026647152,-460.0,0.00016712,2]
[373510689,1753026647161,-460.0,0.00016712,2]
[373510690,1753026647171,-460.0,0.00016712,2]
[373510691,1753026647306,-460.0,0.00016712,2]
[373510692,1753026647317,-460.0,0.00016712,2]
[373510693,1753026647331,-460.0,0.00016712,2]
[373510694,1753026647341,-460.0,0.00016712,2]
[373510695,1753026647351,-2158.6,0.00016712,2]
[373510696,1753026647362,-460.0,0.00016712,2]
[373510697,1753026647372,-460.0,0.00016712,2]
[373510698,1753026647381,-1494.58,0.00016712,2]
[373510699,1753026647391,-539.13,0.00016712,2]
[373510700,1753026647402,-576.18,0.00016712,2]
[373510701,1753026647412,-460.91033082,0.00016712,2]
[373510702,1753026647422,-864.68,0.00016712,2]
[373510703,1753026647431,-460.0,0.00016712,2]
[373510704,1753026647440,-460.0,0.00016712,2]
[373510705,1753026647450,-460.0,0.00016712,2]
[373510706,1753026647460,-460.0,0.00016712,2]
[373510707,1753026647469,-460.0,0.00016712,2]
[373510708,1753026647479,-255.23532433,0.00016712,2]
[373510709,1753026647491,-460.0,0.00016712,2]
[373510710,1753026647502,-1210.96,0.00016712,2]
[373510711,1753026647511,-460.0,0.00016712,2]
[373510712,1753026647521,-2802.59,0.00016712,2]
[373510713,1753026647530,-460.0,0.00016712,2]
[373510714,1753026647540,-460.0,0.00016712,2]
[373510715,1753026647550,-460.0,0.00016712,2]
[373510716,1753026647561,-460.0,0.00016712,2]
[373510717,1753026647570,-460.0,0.00016712,2]
[373510718,1753026647580,-543.09,0.00016712,2]
[373510719,1753026647590,-460.0,0.00016712,2]
[373510720,1753026647599,-460.0,0.00016712,2]
[373510721,1753026647608,-460.0,0.00016712,2]
[373510722,1753026647618,-460.0,0.00016712,2]
[373510723,1753026647627,-460.0,0.00016712,2]
[373510724,1753026647636,-497.09481103,0.00016712,2]
[373510725,1753026647646,-716.44,0.00016712,2]
[373510726,1753026647657,-2769.25,0.00016712,2]
[373510727,1753026647667,-460.0,0.00016712,2]
[373510728,1753026647677,-460.0,0.00016712,2]
[373510729,1753026647686,-460.0,0.00016712,2]
[373510730,1753026647696,-460.0,0.00016712,2]
[373510731,1753026647706,-1239.64,0.00016712,2]
[373510732,1753026647715,-460.0,0.00016712,2]
[373510733,1753026647724,-460.0,0.00016712,2]
[373510734,1753026647734,-460.0,0.00016712,2]
[373510735,1753026647743,-460.0,0.00016712,2]
[373510736,1753026647753,-592.54,0.00016712,2]
[373510737,1753026647762,-460.0,0.00016712,2]
[373510738,1753026647771,-460.0,0.00016712,2]
[373510739,1753026647781,-460.0,0.00016712,2]
[373510740,1753026647790,-460.0,0.00016712,2]
[373510741,1753026647799,-460.0,0.00016712,2]
[373510742,1753026647809,-460.0,0.00016712,2]
[373510743,1753026647818,-460.0,0.00016712,2]
[373510744,1753026647828,-460.0,0.00016712,2]
[373510745,1753026647837,-460.0,0.00016712,2]
[373510746,1753026647846,-150.70191841,0.00016712,2]
[373510747,1753026647855,-460.0,0.00016712,2]
[373510748,1753026647864,-528.42,0.00016712,2]
[373510749,1753026647873,-940.54,0.00016712,2]
[373510750,1753026647883,-460.0,0.00016712,2]
[373510751,1753026647892,-190.7970049,0.00016712,2]
[373510752,1753026647902,-3492.12,0.00016712,2]
[373510753,1753026647911,-2925.73,0.00016712,2]
[373510754,1753026647921,-460.0,0.00016712,2]
[373510755,1753026647930,-1089.22,0.00016712,2]
[373510756,1753026647940,-460.0,0.00016712,2]
[373510757,1753026647950,-460.0,0.00016712,2]
[373510758,1753026647960,-460.0,0.00016712,2]
[373510759,1753026647969,-687.63,0.00016712,2]
[373510760,1753026647978,-460.0,0.00016712,2]
[373510761,1753026647987,-460.0,0.00016712,2]
[373510762,1753026647996,-1039.49,0.00016712,2]
[373510763,1753026648006,-460.0,0.00016712,2]
[373510764,1753026648015,-500.0,0.00016773,2]
[373510765,1753026648025,-500.0,0.00016773,2]
[373510766,1753026648034,-500.98373179,0.00016773,2]
[373510767,1753026648044,-500.0,0.00016773,2]
[373510768,1753026648053,-502.61157044,0.00016773,2]
[373510769,1753026648062,-500.2969328,0.00016773,2]
[373510770,1753026648072,-500.0,0.00016773,2]
[373510771,1753026648081,-500.5531015,0.00016773,2]
[373510772,1753026648090,-500.98068818,0.00016773,2]
[373510773,1753026648100,-500.0,0.00016773,2]
[373510774,1753026648109,-500.0,0.00016773,2]
[373510775,1753026648119,-500.0,0.00016773,2]
[373510776,1753026648128,-500.0,0.00016773,2]
[373510777,1753026648138,-500.38190345,0.00016773,2]
[373510778,1753026648147,-502.51153415,0.00016773,2]
[373510779,1753026648157,-200.12,0.000168,2]
[373510780,1753026648166,-151.0,0.000168,2]
[373510781,1753026648177,-1722.59378816,0.00016886,2]
[373510782,1753026648187,-151.0,0.000169,2]
[373510783,1753026648197,-502.99856728,0.00016969,2]
[373510784,1753026648207,-379.87210016,0.00016969,2]
[373510785,1753026648217,-500.0,0.00016969,2]
[373510786,1753026648227,-500.0,0.00016973,2]
[373510787,1753026648236,-500.0,0.00016973,2]
[373510788,1753026648246,-500.0,0.00016973,2]
[373510789,1753026648256,-419.00766966,0.00016973,2]
[373510790,1753026648266,-500.0,0.00016984,2]
[373510791,1753026648275,-500.0,0.00016984,2]
[373510792,1753026648285,-500.0,0.00016984,2]
[373510793,1753026648294,-500.0,0.00016984,2]
[373510794,1753026648303,-500.0,0.00016984,2]
[373510795,1753026648313,-500.0,0.00016984,2]
[373510796,1753026648326,-500.0,0.00016984,2]
[373510797,1753026648335,-360.5780152,0.00016984,2]
[373510798,1753026648346,-500.0,0.00016984,2]
[373510799,1753026648356,-500.0,0.00016984,2]
[373510800,1753026648367,-500.0,0.00016984,2]
[373510801,1753026648376,-500.0,0.00016984,2]
[373510802,1753026648386,-521.45936806,0.00016984,2]
[373510803,1753026648396,-500.0,0.00016984,2]
[373510804,1753026648409,-500.0,0.00016984,2]
[373510805,1753026648418,-500.0,0.00016985,2]
[373510806,1753026648428,-500.0,0.00016985,2]
[373510807,1753026648437,-500.0,0.00016985,2]
[373510808,1753026648448,-500.0,0.00016985,2]
[373510809,1753026648457,-460.0,0.00016986,2]
[373510810,1753026648467,-460.0,0.00016986,2]
[373510811,1753026648476,-460.0,0.00016986,2]
[373510812,1753026648486,-460.0,0.00016986,2]
[373510813,1753026648495,-460.0,0.00016986,2]
[373510814,1753026648504,-460.0,0.00016986,2]
[373510815,1753026648514,-464.58615465,0.00016986,2]
[373510816,1753026648523,-460.0,0.00016986,2]
[373510817,1753026648532,-460.0,0.00016986,2]
[373510818,1753026648542,-344.03695409,0.00016986,2]
[373510819,1753026648551,-460.0,0.00016986,2]
[373510820,1753026648561,-460.0,0.00016986,2]
[373510821,1753026648570,-460.0,0.00016986,2]
[373510822,1753026648580,-460.0,0.00016986,2]
[373510823,1753026648589,-460.0,0.00016986,2]
[373510824,1753026648599,-460.0,0.00016986,2]
[373510825,1753026648608,-568.14,0.00016986,2]
[373510826,1753026648618,-460.0,0.00016986,2]
[373510827,1753026648627,-460.0,0.00016986,2]
[373510828,1753026648637,-460.0,0.00016986,2]
[373510829,1753026648647,-460.0,0.00016986,2]
[373510830,1753026648656,-460.0,0.00016986,2]
[373510831,1753026648666,-851.26,0.00016986,2]
[373510832,1753026648676,-460.0,0.00016986,2]
[373510833,1753026648685,-460.0,0.00016986,2]
[373510834,1753026648695,-460.0,0.00016986,2]
[373510835,1753026648706,-460.0,0.00016986,2]
[373510836,1753026648716,-460.0,0.00016986,2]
[373510837,1753026648725,-646.62,0.00016986,2]
[373510838,1753026648734,-460.0,0.00016986,2]
[373510839,1753026648744,-460.0,0.00016986,2]
[373510840,1753026648753,-460.0,0.00016986,2]
[373510841,1753026648762,-460.0,0.00016986,2]
[373510842,1753026648771,-1999.71,0.00016986,2]
[373510843,1753026648780,-460.0,0.00016986,2]
[373510844,1753026648790,-460.0,0.00016986,2]
[373510845,1753026648800,-699.71,0.00016986,2]
[373510846,1753026648809,-460.0,0.00016986,2]
[373510847,1753026648819,-260.06843263,0.00016986,2]
[373510848,1753026648829,-208.04435915,0.00016986,2]
[373510849,1753026648839,-460.0,0.00016986,2]
[373510850,1753026648848,-605.92605273,0.00016986,2]
[373510851,1753026648858,-460.0,0.00016986,2]
[373510852,1753026648867,-460.0,0.00016986,2]
[373510853,1753026648877,-460.0,0.00016986,2]
[373510854,1753026648886,-460.0,0.00016986,2]
[373510855,1753026648895,-460.0,0.00016986,2]
[373510856,1753026648905,-460.0,0.00016986,2]
[373510857,1753026648914,-460.0,0.00016986,2]
[373510858,1753026648924,-460.0,0.00016986,2]
[373510859,1753026648933,-460.0,0.00016986,2]
[373510860,1753026648942,-3735.57,0.00016986,2]
[373510861,1753026648953,-460.0,0.00016986,2]
[373510862,1753026648962,-460.0,0.00016986,2]
[373510863,1753026648972,-474.03,0.00016986,2]
[373510864,1753026648981,-468.21380499,0.00016986,2]
[373510865,1753026648991,-460.0,0.00016986,2]
[373510866,1753026649000,-460.0,0.00016986,2]
[373510867,1753026649009,-460.0,0.00016986,2]
[373510868,1753026649019,-460.0,0.00016986,2]
[373510869,1753026649028,-460.0,0.00016986,2]
[373510870,1753026649037,-460.0,0.00016986,2]
[373510871,1753026649047,-5110.21,0.00016986,2]
[373510872,1753026649056,-460.0,0.00016986,2]
[373510873,1753026649066,-460.0,0.00016986,2]
[373510874,1753026649076,-348.89777454,0.00016986,2]
[373510875,1753026649086,-460.0,0.00016986,2]
[373510876,1753026649095,-460.0,0.00016986,2]
[373510877,1753026649104,-460.0,0.00016986,2]
[373510878,1753026649112,-2089.38,0.00016986,2]
[373510879,1753026649121,-463.94,0.00016986,2]
[373510880,1753026649131,-460.0,0.00016986,2]
[373510881,1753026649140,-779.34,0.00016986,2]
[373510882,1753026649150,-460.0,0.00016986,2]
[373510883,1753026649159,-460.0,0.00016986,2]
[373510884,1753026649169,-460.0,0.00016986,2]
[373510885,1753026649178,-460.0,0.00016986,2]
[373510886,1753026649187,-731.76,0.00016986,2]
[373510887,1753026649197,-464.26113535,0.00016986,2]
[373510888,1753026649206,-460.0,0.00016986,2]
[373510889,1753026649216,-460.0,0.00016986,2]
[373510890,1753026649225,-460.0,0.00016986,2]
[373510891,1753026649235,-460.0,0.00016986,2]
[373510892,1753026649245,-460.0,0.00016986,2]
[373510893,1753026649255,-601.82,0.00016986,2]
[373510894,1753026649265,-3970.59,0.00016986,2]
[373510895,1753026649274,-460.0,0.00016986,2]
[373510896,1753026649284,-553.67,0.00016986,2]
[373510897,1753026649293,-460.0,0.00016986,2]
[373510898,1753026649302,-587.01335442,0.00016986,2]
[373510899,1753026649312,-460.0,0.00016986,2]
[373510900,1753026649324,-7496.91,0.00016986,2]
[373510901,1753026649334,-460.0,0.00016986,2]
[373510902,1753026649343,-460.0,0.00016986,2]
[373510903,1753026649353,-460.0,0.00016986,2]
[373510904,1753026649362,-460.0,0.00016986,2]
[373510905,1753026649371,-477.8,0.00016986,2]
[373510906,1753026649380,-592.97,0.00016986,2]
[373510907,1753026649390,-2805.44,0.00016986,2]
[373510908,1753026649401,-460.0,0.00016986,2]
[373510909,1753026649410,-460.0,0.00016986,2]
[373510910,1753026649420,-552.66,0.00016986,2]
[373510911,1753026649429,-460.0,0.00016986,2]
[373510912,1753026649439,-1188.88,0.00016986,2]
[373510913,1753026649449,-460.0,0.00016986,2]
[373510914,1753026649457,-561.69027837,0.00016986,2]
[373510915,1753026649466,-460.0,0.00016986,2]
[373510916,1753026649476,-2378.25,0.00016986,2]
[373510917,1753026649486,-2378.25,0.00016986,2]
[373510918,1753026649495,-3625.06,0.00016986,2]
[373510919,1753026649504,-800.52,0.00016986,2]
[373510920,1753026649514,-370.54610991,0.00016986,2]
[373510921,1753026649523,-460.0,0.00016986,2]
[373510922,1753026649534,-460.0,0.00016986,2]
[373510923,1753026649543,-348.75965009,0.00016986,2]
[373510924,1753026649553,-460.0,0.00016986,2]
[373510925,1753026649562,-460.0,0.00016986,2]
[373510926,1753026649571,-2158.6,0.00016986,2]
[373510927,1753026649581,-460.0,0.00016986,2]
[373510928,1753026649590,-460.0,0.00016986,2]
[373510929,1753026649601,-1494.58,0.00016986,2]
[373510930,1753026649610,-539.13,0.00016986,2]
[373510931,1753026649619,-576.18,0.00016986,2]
[373510932,1753026649628,-864.68,0.00016986,2]
[373510933,1753026649637,-302.43348805,0.00016986,2]
[373510934,1753026649646,-460.0,0.00016986,2]
[373510935,1753026649655,-460.0,0.00016986,2]
[373510936,1753026649664,-460.0,0.00016986,2]
[373510937,1753026649674,-460.0,0.00016986,2]
[373510938,1753026649685,-460.0,0.00016986,2]
[373510939,1753026649697,-1210.96,0.00016986,2]
[373510940,1753026649707,-460.0,0.00016986,2]
[373510941,1753026649716,-2802.59,0.00016986,2]
[373510942,1753026649726,-460.0,0.00016986,2]
[373510943,1753026649736,-460.0,0.00016986,2]
[373510944,1753026649745,-460.0,0.00016986,2]
[373510945,1753026649754,-460.0,0.00016986,2]
[373510946,1753026649764,-543.09,0.00016986,2]
[373510947,1753026649774,-460.0,0.00016986,2]
[373510948,1753026649784,-460.0,0.00016986,2]
[373510949,1753026649794,-460.0,0.00016986,2]
[373510950,1753026649804,-460.0,0.00016986,2]
[373510951,1753026649813,-460.0,0.00016986,2]
[373510952,1753026649823,-716.44,0.00016986,2]
[373510953,1753026649832,-2769.25,0.00016986,2]
[373510954,1753026649841,-460.0,0.00016986,2]
[373510955,1753026649851,-460.0,0.00016986,2]
[373510956,1753026649861,-460.0,0.00016986,2]
[373510957,1753026649870,-1239.64,0.00016986,2]
[373510958,1753026649878,-460.0,0.00016986,2]
[373510959,1753026649887,-460.0,0.00016986,2]
[373510960,1753026649896,-460.0,0.00016986,2]
[373510961,1753026649903,-592.54,0.00016986,2]
[373510962,1753026649912,-460.0,0.00016986,2]
[373510963,1753026649919,-460.0,0.00016986,2]
[373510964,1753026649928,-460.0,0.00016986,2]
[373510965,1753026649937,-460.0,0.00016986,2]
[373510966,1753026649947,-460.0,0.00016986,2]
[373510967,1753026649957,-460.0,0.00016986,2]
[373510968,1753026649967,-460.0,0.00016986,2]
[373510969,1753026649977,-528.42,0.00016986,2]
[373510970,1753026649986,-940.54,0.00016986,2]
[373510971,1753026649995,-460.0,0.00016986,2]
[373510972,1753026650005,-3492.12,0.00016986,2]
[373510973,1753026650015,-2925.73,0.00016986,2]
[373510974,1753026650024,-460.0,0.00016986,2]
[373510975,1753026650142,-1089.22,0.00016986,2]
[373510976,1753026650151,-460.0,0.00016986,2]
[373510977,1753026650159,-460.0,0.00016986,2]
[373510978,1753026650168,-687.63,0.00016986,2]
[373510979,1753026650178,-460.0,0.00016986,2]
[373510980,1753026650187,-460.0,0.00016986,2]
[373510981,1753026650198,-1039.49,0.00016986,2]
[373510982,1753026650208,-460.0,0.00016986,2]
[373510983,1753026650217,-151.0,0.00017,2]
[373510984,1753026650227,-200.0,0.00017,2]
[373510985,1753026650236,-500.0,0.00017074,2]
[373510986,1753026650245,-500.0,0.00017092,2]
[373510987,1753026650254,-500.0,0.00017092,2]
[373510988,1753026650264,-500.67785055,0.00017092,2]
[373510989,1753026650273,-151.0,0.000171,2]
[373510990,1753026650283,-500.0,0.00017137,2]
[373510991,1753026650292,-1722.59378816,0.0001716,2]
[373510992,1753026650302,-151.0,0.000172,2]
[373510993,1753026650311,-500.0,0.00017259,2]
[373510994,1753026650322,-500.0,0.00017259,2]
[373510995,1753026650332,-500.0,0.00017259,2]
[373510996,1753026650341,-165.02,0.00017259,2]
[373510997,1753026650351,-460.0,0.0001726,2]
[373510998,1753026650360,-460.0,0.0001726,2]
[373510999,1753026650370,-460.0,0.0001726,2]
[373511000,1753026650379,-467.43794708,0.0001726,2]
[373511001,1753026650388,-300.02129946,0.0001726,2]
[373511002,1753026650399,-460.0,0.0001726,2]
[373511003,1753026650408,-460.0,0.0001726,2]
[373511004,1753026650418,-432.36032985,0.0001726,2]
[373511005,1753026650427,-521.02842211,0.0001726,2]
[373511006,1753026650437,-460.0,0.0001726,2]
[373511007,1753026650446,-460.0,0.0001726,2]
[373511008,1753026650456,-460.0,0.0001726,2]
[373511009,1753026650466,-851.26,0.0001726,2]
[373511010,1753026650475,-460.0,0.0001726,2]
[373511011,1753026650484,-506.98997114,0.0001726,2]
[373511012,1753026650494,-460.0,0.0001726,2]
[373511013,1753026650503,-460.0,0.0001726,2]
[373511014,1753026650513,-398.44937149,0.0001726,2]
[373511015,1753026650522,-646.62,0.0001726,2]
[373511016,1753026650532,-460.0,0.0001726,2]
[373511017,1753026650541,-460.0,0.0001726,2]
[373511018,1753026650550,-460.0,0.0001726,2]
[373511019,1753026650559,-460.0,0.0001726,2]
[373511020,1753026650569,-535.41948089,0.0001726,2]
[373511021,1753026650578,-1999.71,0.0001726,2]
[373511022,1753026650588,-460.0,0.0001726,2]
[373511023,1753026650597,-460.0,0.0001726,2]
[373511024,1753026650607,-699.71,0.0001726,2]
[373511025,1753026650616,-460.0,0.0001726,2]
[373511026,1753026650625,-480.14,0.0001726,2]
[373511027,1753026650635,-460.0,0.0001726,2]
[373511028,1753026650644,-460.0,0.0001726,2]
[373511029,1753026650653,-460.0,0.0001726,2]
[373511030,1753026650662,-460.0,0.0001726,2]
[373511031,1753026650672,-460.0,0.0001726,2]
[373511032,1753026650682,-460.0,0.0001726,2]
[373511033,1753026650692,-460.0,0.0001726,2]
[373511034,1753026650701,-3735.57,0.0001726,2]
[373511035,1753026650711,-460.0,0.0001726,2]
[373511036,1753026650721,-460.0,0.0001726,2]
[373511037,1753026650730,-474.03,0.0001726,2]
[373511038,1753026650740,-460.0,0.0001726,2]
[373511039,1753026650749,-460.0,0.0001726,2]
[373511040,1753026650758,-460.0,0.0001726,2]
[373511041,1753026650767,-460.0,0.0001726,2]
[373511042,1753026650777,-461.33243978,0.0001726,2]
[373511043,1753026650786,-5110.21,0.0001726,2]
[373511044,1753026650796,-460.0,0.0001726,2]
[373511045,1753026650805,-460.0,0.0001726,2]
[373511046,1753026650815,-460.0,0.0001726,2]
[373511047,1753026650824,-460.0,0.0001726,2]
[373511048,1753026650834,-460.0,0.0001726,2]
[373511049,1753026650843,-2089.38,0.0001726,2]
[373511050,1753026650852,-463.94,0.0001726,2]
[373511051,1753026650862,-460.0,0.0001726,2]
[373511052,1753026650871,-779.34,0.0001726,2]
[373511053,1753026650880,-460.0,0.0001726,2]
[373511054,1753026650890,-460.0,0.0001726,2]
[373511055,1753026650899,-460.0,0.0001726,2]
[373511056,1753026650909,-731.76,0.0001726,2]
[373511057,1753026650918,-460.0,0.0001726,2]
[373511058,1753026650928,-460.0,0.0001726,2]
[373511059,1753026650937,-460.0,0.0001726,2]
[373511060,1753026650947,-460.0,0.0001726,2]
[373511061,1753026650956,-460.0,0.0001726,2]
[373511062,1753026650966,-601.82,0.0001726,2]
[373511063,1753026650975,-3970.59,0.0001726,2]
[373511064,1753026650985,-460.0,0.0001726,2]
[373511065,1753026650995,-553.67,0.0001726,2]
[373511066,1753026651005,-460.0,0.0001726,2]
[373511067,1753026651014,-460.0,0.0001726,2]
[373511068,1753026651023,-7496.91,0.0001726,2]
[373511069,1753026651033,-460.0,0.0001726,2]
[373511070,1753026651042,-460.0,0.0001726,2]
[373511071,1753026651052,-460.0,0.0001726,2]
[373511072,1753026651062,-460.0,0.0001726,2]
[373511073,1753026651072,-592.97,0.0001726,2]
[373511074,1753026651082,-2805.44,0.0001726,2]
[373511075,1753026651091,-460.0,0.0001726,2]
[373511076,1753026651102,-460.0,0.0001726,2]
[373511077,1753026651111,-552.66,0.0001726,2]
[373511078,1753026651121,-460.0,0.0001726,2]
[373511079,1753026651131,-1188.88,0.0001726,2]
[373511080,1753026651140,-460.0,0.0001726,2]
[373511081,1753026651150,-460.0,0.0001726,2]